fUSD/lending_fUSD_20260607
["ID","MTS","AMOUNT","RATE_DAILY","PERIOD"]
[424347680,1780774252000,-225.18697532,0.00020116,2]
[424347624,1780774252000,-151.0,0.00019568,2]
[424347666,1780774252000,-600.37462754,0.0002,2]
[424347656,1780774252000,-478.0,0.0002,2]
[424347669,1780774252000,-766.0,0.0002,2]
[424347654,1780774252000,-756.0,0.0002,2]
[424347661,1780774252000,-1407.0,0.0002,2]
[424347627,1780774252000,-151.0,0.0001957,2]
[424347632,1780774252000,-2438.10380057,0.000197,2]
[424347629,1780774252000,-2000.0,0.00019591,2]
[424347630,1780774252000,-200.0,0.00019614,2]
[424347631,1780774252000,-1802.4876194,0.000197,2]
[424347628,1780774252000,-500.0,0.00019591,2]
[424347634,1780774252000,-2000.0,0.00019908,7]
[424347633,1780774252000,-1146.72507585,0.000199,3]
[424347636,1780774252000,-1263.24391144,0.0001994,2]
[424347637,1780774252000,-1125.0,0.0001996,2]
[424347635,1780774252000,-305.41714996,0.0001994,2]
[424347638,1780774252000,-2591.37,0.00019968,2]
[424347640,1780774252000,-17241.72,0.00019968,2]
[424347625,1780774252000,-217.15233878,0.00019568,2]
[424347657,1780774252000,-2021.0,0.0002,2]
[424347639,1780774252000,-254.0,0.00019968,2]
[424347653,1780774252000,-400.0,0.0002,2]
[424347650,1780774252000,-1074.006668,0.0002,2]
[424347648,1780774252000,-1317.0,0.0002,2]
[424347644,1780774252000,-300.0,0.00019999,2]
[424347645,1780774252000,-300.0,0.00019999,2]
[424347647,1780774252000,-300.0,0.00019999,2]
[424347641,1780774252000,-1280.55,0.00019968,2]
[424347642,1780774252000,-1000.0,0.0001997,2]
[424347643,1780774252000,-801.11124635,0.0001997,2]
[424347649,1780774252000,-986.0,0.0002,2]
[424347646,1780774252000,-300.0,0.00019999,2]
[424347700,1780774253000,-1592.87721992,0.00020664,2]
[424347701,1780774253000,-200.0,0.00020664,2]
[424347704,1780774253000,-233.5188934,0.00020664,2]
[424347703,1780774253000,-500.0,0.00020664,2]
[424347702,1780774253000,-2319.72410669,0.00020664,2]
[424347711,1780774253000,-300.0,0.00020715,2]
[424347707,1780774253000,-233.5188934,0.00020664,2]
[424347708,1780774253000,-300.0,0.00020715,2]
[424347709,1780774253000,-300.0,0.00020715,2]
[424347706,1780774253000,-151.0,0.00020664,2]
[424347699,1780774253000,-200.0,0.00020664,2]
[424347705,1780774253000,-151.0,0.00020664,2]
[424347697,1780774253000,-194.72792766,0.00020664,2]
[424347692,1780774253000,-150.0,0.0002058,2]
[424347695,1780774253000,-151.0,0.00020664,2]
[424347693,1780774253000,-150.44842242,0.0002058,2]
[424347691,1780774253000,-150.0,0.0002058,2]
[424347689,1780774253000,-1951.08,0.000204,2]
[424347694,1780774253000,-2256.02713155,0.000206,2]
[424347690,1780774253000,-2256.02713155,0.000204,2]
[424347687,1780774253000,-156.587,0.00020389,2]
[424347698,1780774253000,-492.46343929,0.00020664,2]
[424347688,1780774253000,-217.15233878,0.00020389,2]
[424347685,1780774253000,-500.0,0.00020247,2]
[424347686,1780774253000,-305.1,0.00020381,2]
[424347684,1780774253000,-2256.02713155,0.000202,2]
[424347696,1780774253000,-233.5188934,0.00020664,2]
[424347712,1780774253000,-1548.0,0.00020748,2]
[424347719,1780774253000,-450.0,0.00013667,2]
[424347715,1780774253000,-1548.0,0.00020748,2]
[424347710,1780774253000,-300.0,0.00020715,2]
[424347740,1780774253000,-1548.0,0.00020748,2]
[424347736,1780774253000,-1548.0,0.00020748,2]
[424347737,1780774253000,-1548.0,0.00020748,2]
[424347730,1780774253000,-1548.0,0.00020748,2]
[424347727,1780774253000,-1548.0,0.00020748,2]
[424347729,1780774253000,-1548.0,0.00020748,2]
[424347731,1780774253000,-1548.0,0.00020748,2]
[424347734,1780774253000,-1548.0,0.00020748,2]
[424347733,1780774253000,-1548.0,0.00020748,2]
[424347732,1780774253000,-1548.0,0.00020748,2]
[424347735,1780774253000,-1548.0,0.00020748,2]
[424347738,1780774253000,-1548.0,0.00020748,2]
[424347739,1780774253000,-1548.0,0.00020748,2]
[424347741,1780774253000,-1289.16680089,0.00020748,2]
[424347725,1780774253000,-1548.0,0.00020748,2]
[424347724,1780774253000,-1548.0,0.00020748,2]
[424347721,1780774253000,-1548.0,0.00020748,2]
[424347723,1780774253000,-1548.0,0.00020748,2]
[424347722,1780774253000,-1548.0,0.00020748,2]
[424347726,1780774253000,-1548.0,0.00020748,2]
[424347720,1780774253000,-597.33319916,0.00020748,2]
[424347728,1780774253000,-1548.0,0.00020748,2]
[424347718,1780774253000,-950.66680084,0.00020748,2]
[424347717,1780774253000,-1150.27084528,0.00020748,2]
[424347714,1780774253000,-1548.0,0.00020748,2]
[424347713,1780774253000,-1548.0,0.00020748,2]
[424347716,1780774253000,-397.72915472,0.00020748,2]
[424347750,1780775188000,171.66,0.00029378,120]
[424347772,1780775432000,-254.82339939,0.00012198,2]
[424347774,1780775432000,-575.40600732,0.00012398,2]
[424347773,1780775432000,-532.33804157,0.00012398,2]
[424347779,1780775432000,-639.01288281,0.00012398,2]
[424347780,1780775432000,-4838.00677323,0.00012398,2]
[424347781,1780775432000,-889.73795982,0.00012398,2]
[424347777,1780775432000,-1558.3,0.00012398,2]
[424347815,1780775438000,-14041.74,0.00012901,2]
[424347817,1780775438000,-459.0,0.00013044,2]
[424347816,1780775438000,-150.0,0.00012939,2]
[424347821,1780775438000,-444.0,0.00013044,2]
[424347822,1780775438000,-441.0,0.00013044,2]
[424347823,1780775438000,-449.0,0.00013044,2]
[424347824,1780775438000,-449.0,0.00013044,2]
[424347825,1780775438000,-456.0,0.00013044,2]
[424347826,1780775438000,-452.0,0.00013044,2]
[424347827,1780775438000,-445.0,0.00013044,2]
[424347828,1780775438000,-458.0,0.00013044,2]
[424347833,1780775438000,-455.0,0.00013044,2]
[424347831,1780775438000,-452.0,0.00013044,2]
[424347832,1780775438000,-454.0,0.00013044,2]
[424347820,1780775438000,-455.0,0.00013044,2]
[424347829,1780775438000,-447.0,0.00013044,2]
[424347814,1780775438000,-500.0,0.000129,2]
[424347805,1780775438000,-500.0,0.000129,2]
[424347813,1780775438000,-500.0,0.000129,2]
[424347830,1780775438000,-444.0,0.00013044,2]
[424347799,1780775438000,-409287.61833525,0.00012398,2]
[424347800,1780775438000,-13343.69582542,0.00012486,2]
[424347802,1780775438000,-171.66,0.00012735,2]
[424347807,1780775438000,-500.0,0.000129,2]
[424347806,1780775438000,-500.0,0.000129,2]
[424347803,1780775438000,-174.58459034,0.00012898,2]
[424347804,1780775438000,-500.0,0.000129,2]
[424347801,1780775438000,-163.49,0.00012586,2]
[424347808,1780775438000,-500.0,0.000129,2]
[424347809,1780775438000,-500.0,0.000129,2]
[424347812,1780775438000,-500.0,0.000129,2]
[424347811,1780775438000,-486.15361506,0.000129,2]
[424347810,1780775438000,-500.0,0.000129,2]
[424347819,1780775438000,-451.0,0.00013044,2]
[424347818,1780775438000,-443.0,0.00013044,2]
[424347834,1780775438000,-454.0,0.00013044,2]
[424347872,1780775438000,-99329.7918,0.00013599,2]
[424347837,1780775438000,-458.0,0.00013044,2]
[424347854,1780775438000,-454.0,0.00013044,2]
[424347852,1780775438000,-451.0,0.00013044,2]
[424347858,1780775438000,-449.0,0.0001313,2]
[424347862,1780775438000,-161.61977165,0.00013377,2]
[424347860,1780775438000,-442.0,0.00013248,2]
[424347861,1780775438000,-2000.0,0.00013344,2]
[424347863,1780775438000,-171.2787046,0.00013377,2]
[424347864,1780775438000,-500.0,0.00013377,2]
[424347866,1780775438000,-510.20643831,0.00013377,2]
[424347865,1780775438000,-500.0,0.00013377,2]
[424347869,1780775438000,-443.0,0.00013417,2]
[424347871,1780775438000,-4000.0,0.00013455,2]
[424347868,1780775438000,-364.2486942,0.00013417,2]
[424347870,1780775438000,-449.0,0.00013417,2]
[424347836,1780775438000,-441.0,0.00013044,2]
[424347855,1780775438000,-458.0,0.00013044,2]
[424347857,1780775438000,-4000.0,0.00013127,2]
[424347867,1780775438000,-518.78466876,0.00013377,2]
[424347856,1780775438000,-450.0,0.00013044,2]
[424347859,1780775438000,-459.0,0.00013248,2]
[424347838,1780775438000,-447.0,0.00013044,2]
[424347839,1780775438000,-441.0,0.00013044,2]
[424347835,1780775438000,-444.0,0.00013044,2]
[424347844,1780775438000,-441.0,0.00013044,2]
[424347841,1780775438000,-455.0,0.00013044,2]
[424347842,1780775438000,-445.0,0.00013044,2]
[424347846,1780775438000,-446.0,0.00013044,2]
[424347840,1780775438000,-441.0,0.00013044,2]
[424347845,1780775438000,-448.0,0.00013044,2]
[424347847,1780775438000,-451.0,0.00013044,2]
[424347850,1780775438000,-443.0,0.00013044,2]
[424347849,1780775438000,-452.0,0.00013044,2]
[424347848,1780775438000,-445.0,0.00013044,2]
[424347853,1780775438000,-456.0,0.00013044,2]
[424347843,1780775438000,-456.0,0.00013044,2]
[424347851,1780775438000,-444.0,0.00013044,2]
[424347922,1780775439000,-500.0,0.00013699,2]
[424347915,1780775439000,-500.0,0.00013699,2]
[424347916,1780775439000,-500.0,0.00013699,2]
[424347913,1780775439000,-500.0,0.00013699,2]
[424347911,1780775439000,-166.66,0.00013699,2]
[424347908,1780775439000,-500.0,0.00013698,2]
[424347912,1780775439000,-200.0,0.00013699,2]
[424347910,1780775439000,-2500.0,0.00013699,2]
[424347909,1780775439000,-500.0,0.00013698,2]
[424347907,1780775439000,-531.77131991,0.00013698,2]
[424347904,1780775439000,-500.0,0.00013698,2]
[424347914,1780775439000,-500.0,0.00013699,2]
[424347920,1780775439000,-500.0,0.00013699,2]
[424347925,1780775439000,-500.0,0.00013699,2]
[424347919,1780775439000,-500.0,0.00013699,2]
[424347918,1780775439000,-500.0,0.00013699,2]
[424347921,1780775439000,-373.26180396,0.00013699,2]
[424347923,1780775439000,-500.0,0.00013699,2]
[424347924,1780775439000,-500.0,0.00013699,2]
[424347926,1780775439000,-500.0,0.00013699,2]
[424347928,1780775439000,-500.0,0.00013699,2]
[424347929,1780775439000,-500.0,0.00013699,2]
[424347930,1780775439000,-500.0,0.00013699,2]
[424347927,1780775439000,-500.0,0.00013699,2]
[424347932,1780775439000,-500.0,0.00013699,2]
[424347905,1780775439000,-500.0,0.00013698,2]
[424347931,1780775439000,-500.0,0.00013699,2]
[424347917,1780775439000,-500.0,0.00013699,2]
[424347902,1780775439000,-500.0,0.00013698,2]
[424347879,1780775439000,-500.0,0.00013698,2]
[424347903,1780775439000,-500.0,0.00013698,2]
[424347934,1780775439000,-500.0,0.00013699,2]
[424347873,1780775439000,-163.49,0.00013635,2]
[424347875,1780775439000,-500.0,0.00013698,2]
[424347874,1780775439000,-457.0,0.00013649,2]
[424347876,1780775439000,-500.0,0.00013698,2]
[424347877,1780775439000,-500.0,0.00013698,2]
[424347883,1780775439000,-500.0,0.00013698,2]
[424347882,1780775439000,-500.0,0.00013698,2]
[424347880,1780775439000,-500.0,0.00013698,2]
[424347878,1780775439000,-504.13525177,0.00013698,2]
[424347881,1780775439000,-500.0,0.00013698,2]
[424347884,1780775439000,-500.0,0.00013698,2]
[424347885,1780775439000,-273.98,0.00013698,2]
[424347906,1780775439000,-500.0,0.00013698,2]
[424347887,1780775439000,-623.3,0.00013698,2]
[424347889,1780775439000,-500.0,0.00013698,2]
[424347891,1780775439000,-500.0,0.00013698,2]
[424347893,1780775439000,-500.0,0.00013698,2]
[424347890,1780775439000,-500.0,0.00013698,2]
[424347892,1780775439000,-163.68,0.00013698,2]
[424347897,1780775439000,-500.0,0.00013698,2]
[424347895,1780775439000,-500.0,0.00013698,2]
[424347896,1780775439000,-500.0,0.00013698,2]
[424347894,1780775439000,-502.60698741,0.00013698,2]
[424347899,1780775439000,-500.0,0.00013698,2]
[424347898,1780775439000,-500.0,0.00013698,2]
[424347900,1780775439000,-500.0,0.00013698,2]
[424347901,1780775439000,-500.0,0.00013698,2]
[424347886,1780775439000,-500.0,0.00013698,2]
[424347933,1780775439000,-500.0,0.00013699,2]
[424347888,1780775439000,-500.0,0.00013698,2]
[424347936,1780775439000,-500.0,0.00013699,2]
[424347972,1780775439000,-500.0,0.00014198,2]
[424347970,1780775439000,-500.0,0.00014198,2]
[424347971,1780775439000,-500.0,0.00014198,2]
[424347973,1780775439000,-500.0,0.00014198,2]
[424347975,1780775439000,-500.0,0.00014198,2]
[424347976,1780775439000,-500.0,0.00014198,2]
[424347974,1780775439000,-500.0,0.00014198,2]
[424347977,1780775439000,-500.0,0.00014198,2]
[424347979,1780775439000,-500.0,0.00014198,2]
[424347978,1780775439000,-500.0,0.00014198,2]
[424347980,1780775439000,-500.0,0.00014198,2]
[424347982,1780775439000,-1000.0,0.00014198,2]
[424347994,1780775439000,-166.66,0.00014384,2]
[424347969,1780775439000,-500.0,0.00014198,2]
[424347981,1780775439000,-500.0,0.00014198,2]
[424347984,1780775439000,-500.0,0.00014198,2]
[424347983,1780775439000,-250.0,0.00014198,2]
[424347985,1780775439000,-500.0,0.00014198,2]
[424347988,1780775439000,-500.0,0.00014198,2]
[424347987,1780775439000,-567.64863004,0.00014198,2]
[424347989,1780775439000,-284.66230357,0.00014198,2]
[424347991,1780775439000,-459.0,0.00014226,2]
[424347993,1780775439000,-166.66,0.00014247,2]
[424347990,1780775439000,-1500000.0,0.00014199,2]
[424347992,1780775439000,-450.0,0.00014226,2]
[424347995,1780775439000,-4000.0,0.00014439,2]
[424347996,1780775439000,-166.66,0.00014527,2]
[424347935,1780775439000,-500.0,0.00013699,2]
[424347986,1780775439000,-500.0,0.00014198,2]
[424347968,1780775439000,-500.0,0.00014198,2]
[424347997,1780775439000,-163.49,0.00014684,2]
[424347967,1780775439000,-500.0,0.00014198,2]
[424347938,1780775439000,-500.0,0.00013699,2]
[424347939,1780775439000,-500.0,0.00013699,2]
[424347937,1780775439000,-500.0,0.00013699,2]
[424347941,1780775439000,-500.0,0.00013699,2]
[424347940,1780775439000,-500.0,0.00013699,2]
[424347942,1780775439000,-500.0,0.00013699,2]
[424347948,1780775439000,-2486.8746,0.0001389,2]
[424347946,1780775439000,-500.0,0.000138,5]
[424347966,1780775439000,-500.0,0.00014198,2]
[424347945,1780775439000,-4000.0,0.00013783,2]
[424347944,1780775439000,-200.0,0.000137,5]
[424347943,1780775439000,-500.0,0.00013699,2]
[424347950,1780775439000,-166.66,0.00013973,2]
[424347952,1780775439000,-250.0,0.00014,2]
[424347947,1780775439000,-166.66,0.00013836,2]
[424347951,1780775439000,-40250.73951665,0.0001399,2]
[424347965,1780775439000,-500.0,0.00014198,2]
[424347949,1780775439000,-800.0,0.000139,5]
[424347964,1780775439000,-500.0,0.00014198,2]
[424347962,1780775439000,-500.0,0.00014198,2]
[424347963,1780775439000,-500.0,0.00014198,2]
[424347960,1780775439000,-500.0,0.00014198,2]
[424347961,1780775439000,-500.0,0.00014198,2]
[424347958,1780775439000,-2015.45791484,0.00014142,2]
[424347957,1780775439000,-15901.76109178,0.00014126,2]
[424347956,1780775439000,-4000.0,0.00014111,2]
[424347955,1780775439000,-166.66,0.0001411,2]
[424347953,1780775439000,-408.86288403,0.00014008,2]
[424347954,1780775439000,-2500.0,0.00014099,2]
[424347959,1780775439000,-500.0,0.00014198,2]
[424348039,1780775440000,-447.0,0.00015572,2]
[424348040,1780775440000,-447.0,0.00015572,2]
[424348041,1780775440000,-150.0,0.00015572,2]
[424348038,1780775440000,-666.0,0.00015571,2]
[424348035,1780775440000,-300.0,0.00015571,2]
[424348034,1780775440000,-300.0,0.00015571,2]
[424348036,1780775440000,-300.0,0.00015571,2]
[424348033,1780775440000,-300.0,0.00015571,2]
[424348032,1780775440000,-300.0,0.00015571,2]
[424348031,1780775440000,-200.0,0.00015526,2]
[424348030,1780775440000,-684.38083575,0.00015521,2]
[424348037,1780775440000,-300.0,0.00015571,2]
[424348042,1780775440000,-3124.62,0.00015615,2]
[424348057,1780775440000,-334.78501547,0.00016,2]
[424348044,1780775440000,-500.0,0.00015726,2]
[424348045,1780775440000,-163.49,0.00015732,2]
[424348047,1780775440000,-300.0,0.00015817,2]
[424348046,1780775440000,-300.0,0.00015817,2]
[424348048,1780775440000,-300.0,0.00015817,2]
[424348050,1780775440000,-666.0,0.00015817,2]
[424348053,1780775440000,-1030.0,0.00015963,2]
[424348049,1780775440000,-300.0,0.00015817,2]
[424348052,1780775440000,-334.78501547,0.000159,2]
[424348056,1780775440000,-500.0,0.00015973,2]
[424348054,1780775440000,-1500.0,0.00015963,2]
[424348051,1780775440000,-15901.76109174,0.00015864,2]
[424348026,1780775440000,-831.07,0.00015442,2]
[424348043,1780775440000,-185.745,0.00015615,2]
[424348029,1780775440000,-500.0,0.00015521,2]
[424348013,1780775440000,-166.66,0.00015006,2]
[424348027,1780775440000,-831.07,0.00015442,2]
[424348055,1780775440000,-166.66,0.00015965,2]
[424347998,1780775440000,-448.0,0.00014786,2]
[424348000,1780775440000,-151.0,0.00014812,2]
[424347999,1780775440000,-455.0,0.00014786,2]
[424348001,1780775440000,-156.587,0.00014812,2]
[424348003,1780775440000,-300.0,0.00014999,2]
[424348002,1780775440000,-200.08318283,0.00014812,2]
[424348010,1780775440000,-300.0,0.00014999,2]
[424348008,1780775440000,-666.0,0.00014999,2]
[424348004,1780775440000,-300.0,0.00014999,2]
[424348005,1780775440000,-682.36022223,0.00014999,2]
[424348007,1780775440000,-300.0,0.00014999,2]
[424348006,1780775440000,-300.0,0.00014999,2]
[424348012,1780775440000,-155.24,0.00015,2]
[424348011,1780775440000,-666.0,0.00014999,2]
[424348015,1780775440000,-900.0,0.00015068,2]
[424348014,1780775440000,-2000.0,0.00015012,2]
[424348016,1780775440000,-728.68411437,0.00015068,2]
[424348019,1780775440000,-500.0,0.00015068,2]
[424348020,1780775440000,-831.07,0.00015434,2]
[424348017,1780775440000,-500.0,0.00015068,2]
[424348018,1780775440000,-500.0,0.00015068,2]
[424348021,1780775440000,-831.07,0.00015436,2]
[424348022,1780775440000,-831.07,0.00015438,2]
[424348023,1780775440000,-831.07,0.00015438,2]
[424348024,1780775440000,-831.07,0.0001544,2]
[424348025,1780775440000,-831.07,0.0001544,2]
[424348028,1780775440000,-166.66,0.00015486,2]
[424348058,1780775440000,-300.0,0.00016,2]
[424348009,1780775440000,-300.0,0.00014999,2]
[424348061,1780775440000,-500.0,0.00016005,2]
[424348093,1780775440000,-500.0,0.0001679,2]
[424348094,1780775440000,-2000.0,0.0001679,2]
[424348091,1780775440000,-163.49,0.00016781,2]
[424348095,1780775440000,-465.74,0.000168,7]
[424348099,1780775440000,-3923.55,0.00016906,2]
[424348097,1780775440000,-500.0,0.00016877,2]
[424348098,1780775440000,-171.94,0.00016889,2]
[424348100,1780775440000,-166.66,0.00016924,2]
[424348101,1780775440000,-196.95,0.00016987,2]
[424348103,1780775440000,-1613.0535,0.00017059,2]
[424348106,1780775440000,-1148.61238259,0.00017607,2]
[424348102,1780775440000,-1107.63007,0.00017059,2]
[424348109,1780775440000,-500.0,0.00017644,2]
[424348092,1780775440000,-1012.01286119,0.0001679,2]
[424348107,1780775440000,-1672.7364795,0.00017607,2]
[424348108,1780775440000,-179.416749,0.0001764,2]
[424348110,1780775440000,-652.2598005,0.00017781,2]
[424348112,1780775440000,-163.49,0.0001783,2]
[424348111,1780775440000,-152.51,0.000178,2]
[424348114,1780775440000,-487.62076011,0.00018,2]
[424348115,1780775440000,-621.42132464,0.00018,2]
[424348116,1780775440000,-1587.33,0.00018,2]
[424348117,1780775440000,-9868.9,0.00018,2]
[424348118,1780775440000,-350.0,0.00018,2]
[424348113,1780775440000,-300.0,0.00017999,2]
[424348120,1780775440000,-169.65,0.00018121,2]
[424348119,1780775440000,-530.04734895,0.00018014,2]
[424348059,1780775440000,-301.79013786,0.00016,2]
[424348105,1780775440000,-15901.76109174,0.00017602,2]
[424348090,1780775440000,-500.0,0.00016729,2]
[424348104,1780775440000,-300.0,0.00017565,2]
[424348096,1780775440000,-177.0,0.000168,3]
[424348060,1780775440000,-500.0,0.00016005,2]
[424348089,1780775440000,-500.0,0.00016729,2]
[424348062,1780775440000,-7537.0,0.00016068,5]
[424348063,1780775440000,-301.79013786,0.000161,2]
[424348070,1780775440000,-500.0,0.00016279,2]
[424348064,1780775440000,-9999.99,0.00016116,2]
[424348067,1780775440000,-13343.69582541,0.00016202,2]
[424348065,1780775440000,-334.78501547,0.000162,2]
[424348069,1780775440000,-500.0,0.00016279,2]
[424348068,1780775440000,-200.0,0.00016279,2]
[424348071,1780775440000,-500.0,0.00016279,2]
[424348074,1780775440000,-334.78501547,0.000164,2]
[424348073,1780775440000,-250.0,0.00016373,2]
[424348072,1780775440000,-500.0,0.00016279,2]
[424348066,1780775440000,-301.79013786,0.000162,2]
[424348076,1780775440000,-300.0,0.00016437,2]
[424348088,1780775440000,-285.67310563,0.00016729,2]
[424348075,1780775440000,-500.0,0.00016425,2]
[424348086,1780775440000,-2000.0,0.00016681,2]
[424348085,1780775440000,-1555.5,0.00016511,2]
[424348084,1780775440000,-1068.11,0.00016511,2]
[424348082,1780775440000,-166.66,0.00016445,2]
[424348079,1780775440000,-300.0,0.00016437,2]
[424348087,1780775440000,-168.33,0.00016712,2]
[424348080,1780775440000,-279.7,0.00016438,2]
[424348083,1780775440000,-334.78501547,0.000165,2]
[424348077,1780775440000,-300.0,0.00016437,2]
[424348078,1780775440000,-300.0,0.00016437,2]
[424348081,1780775440000,-900.0,0.00016438,2]
[424348205,1780775441000,-2000.0,0.00019293,2]
[424348193,1780775441000,-2000.0,0.00019293,2]
[424348191,1780775441000,-2000.0,0.00019293,2]
[424348172,1780775441000,-1865.36488656,0.00019251,2]
[424348186,1780775441000,-2000.0,0.00019293,2]
[424348188,1780775441000,-2000.0,0.00019293,2]
[424348182,1780775441000,-2000.0,0.00019293,2]
[424348184,1780775441000,-2000.0,0.00019293,2]
[424348168,1780775441000,-572.23918451,0.00019193,3]
[424348178,1780775441000,-2000.0,0.00019293,2]
[424348176,1780775441000,-2000.0,0.00019293,2]
[424348195,1780775441000,-2000.0,0.00019293,2]
[424348180,1780775441000,-2000.0,0.00019293,2]
[424348207,1780775441000,-2000.0,0.00019293,2]
[424348226,1780775441000,-2000.0,0.00019293,2]
[424348211,1780775441000,-367.18,0.00019293,2]
[424348209,1780775441000,-2000.0,0.00019293,2]
[424348197,1780775441000,-2000.0,0.00019293,2]
[424348203,1780775441000,-2000.0,0.00019293,2]
[424348199,1780775441000,-2000.0,0.00019293,2]
[424348215,1780775441000,-2000.0,0.00019293,2]
[424348213,1780775441000,-2000.0,0.00019293,2]
[424348217,1780775441000,-2000.0,0.00019293,2]
[424348219,1780775441000,-2000.0,0.00019293,2]
[424348221,1780775441000,-2000.0,0.00019293,2]
[424348222,1780775441000,-2000.0,0.00019293,2]
[424348224,1780775441000,-2000.0,0.00019293,2]
[424348174,1780775441000,-2000.0,0.00019293,2]
[424348201,1780775441000,-2000.0,0.00019293,2]
[424348170,1780775441000,-1280.88388877,0.00019251,2]
[424348121,1780775441000,-169.65,0.00018121,2]
[424348164,1780775441000,-283.97,0.0001902,2]
[424348122,1780775441000,-1191.11104074,0.00018155,2]
[424348232,1780775441000,-1000.0,0.00019293,2]
[424348123,1780775441000,-1734.62772924,0.00018155,2]
[424348124,1780775441000,-487.62076011,0.000182,2]
[424348125,1780775441000,-621.42132464,0.000182,2]
[424348127,1780775441000,-2000.0,0.00018349,2]
[424348128,1780775441000,-500.0,0.00018356,2]
[424348126,1780775441000,-171.66,0.00018283,2]
[424348131,1780775441000,-231.0152019,0.000184,2]
[424348132,1780775441000,-231.01520189,0.000184,2]
[424348134,1780775441000,-279.7,0.0001841,2]
[424348130,1780775441000,-621.42132464,0.000184,2]
[424348129,1780775441000,-487.62076011,0.000184,2]
[424348133,1780775441000,-231.01520189,0.000184,2]
[424348166,1780775441000,-1548.0,0.00019192,2]
[424348135,1780775441000,-200.0,0.0001843,2]
[424348141,1780775441000,-1000.0,0.000186,2]
[424348139,1780775441000,-309.0,0.000186,2]
[424348137,1780775441000,-621.42132464,0.000185,2]
[424348154,1780775441000,-163.49,0.00018879,2]
[424348143,1780775441000,-315.0,0.000186,2]
[424348148,1780775441000,-621.42132464,0.000187,2]
[424348144,1780775441000,-200.0,0.000186,2]
[424348159,1780775441000,-300.0,0.00018999,2]
[424348156,1780775441000,-1125.0,0.00018962,2]
[424348151,1780775441000,-1235.18214925,0.00018703,2]
[424348146,1780775441000,-487.62076011,0.000187,2]
[424348152,1780775441000,-1798.80895522,0.00018703,2]
[424348162,1780775441000,-300.0,0.00019019,2]
[424348160,1780775441000,-157.324506,0.00019004,2]
[424348136,1780775441000,-487.62076011,0.000185,2]
[424348228,1780775441000,-2000.0,0.00019293,2]
[424348247,1780775441000,-1000.0,0.00019293,2]
[424348234,1780775441000,-2000.0,0.00019293,2]
[424348273,1780775441000,-211.46,0.00019293,2]
[424348274,1780775441000,-15901.76109174,0.0001934,2]
[424348275,1780775441000,-150.0,0.00019388,2]
[424348277,1780775441000,-500.0,0.00019591,2]
[424348278,1780775441000,-350.0,0.0001978,2]
[424348276,1780775441000,-500.0,0.0001959,2]
[424348279,1780775441000,-1328.27659266,0.00019799,2]
[424348280,1780775441000,-1934.38338736,0.00019799,2]
[424348281,1780775441000,-13343.69582541,0.00019917,2]
[424348282,1780775441000,-1125.0,0.0001996,2]
[424348284,1780775441000,-870.149462,0.0002,2]
[424348290,1780775441000,-1467.0,0.0002,2]